bitfinex-derivatives/quotes_BNBF0:USTF0_20250710
["timestamp","ask_amount","ask_price","bid_price","bid_amount"]
[1752117888014,3.3505779,671.51,671.05,1.5162624]
[1752117888214,3.3505779,671.51,671.06,1.5162624]
[1752117888412,3.3505779,671.5,671.07,1.5162624]
[1752117888613,3.3505779,671.5,670.85,2.226]
[1752117888814,3.3505779,671.5,670.86,1.5163288]
[1752117889016,3.3505779,671.5,670.87,1.5163288]
[1752117889218,3.3505779,671.5,670.88,1.5163288]
[1752117889517,3.3505779,671.5,670.89,1.5163288]
[1752117889715,3.3505779,671.5,670.9,1.5163288]
[1752117889913,3.3505779,671.5,670.91,1.5163288]
[1752117890214,3.3505779,671.5,670.92,1.5163288]
[1752117890414,3.3505779,671.5,670.93,1.5163288]
[1752117890617,3.3505779,671.5,670.94,1.5163288]
[1752117890818,3.3505779,671.53,670.95,1.5163288]
[1752117891017,3.3505779,671.53,670.96,1.5163288]
[1752117891318,3.3505779,671.53,670.97,1.5163288]
[1752117891520,3.3505779,671.53,670.98,1.5163288]
[1752117891717,3.3505779,671.53,670.99,1.5163288]
[1752117891920,0.25918699,671.63,671.0,1.5163288]
[1752117891921,3.3505779,671.52,671.0,1.5163288]
[1752117892122,3.3505779,671.52,671.01,1.5163288]
[1752117892320,3.3505779,671.52,671.02,1.5163288]
[1752117892517,3.3505779,671.52,671.03,1.5163288]
[1752117892722,3.3505779,671.52,671.04,1.5163288]
[1752117892922,3.3505779,671.52,671.05,1.5163288]
[1752117893121,3.3505779,671.52,671.06,1.5163288]
[1752117893324,3.3505779,671.52,671.07,1.5163288]
[1752117893525,3.3505779,671.52,670.85,2.226]
[1752117893721,3.3505779,671.5,670.86,1.5164347]
[1752117893924,3.3505779,671.5,670.87,1.5164347]
[1752117894125,3.3505779,671.5,670.88,1.5164362]
[1752117894425,3.3505779,671.5,670.89,1.5164362]
[1752117894721,3.3505779,671.5,670.9,1.5164362]
[1752117895025,3.3505779,671.5,670.91,1.5164362]
[1752117895226,3.3505779,671.5,670.92,1.5164362]
[1752117895519,3.3505779,671.5,670.93,1.5164362]
[1752117895724,3.3505779,671.5,670.94,1.5164362]
[1752117895925,3.3505779,671.5,670.95,1.5164362]
[1752117896122,3.3505779,671.5,670.96,1.5164362]
[1752117896323,3.3505779,671.5,670.97,1.5164362]
[1752117896522,3.3505779,671.5,670.98,1.5164362]
[1752117896725,3.3505779,671.5,670.99,1.5164362]
[1752117896926,3.3505779,671.49,671.0,1.5164362]
[1752117897123,3.3505779,671.5,671.01,1.5164362]
[1752117897322,3.3505779,671.5,671.02,1.5164362]
[1752117897527,3.3505779,671.5,671.03,1.5164362]
[1752117897728,3.3505779,671.5,671.04,1.5164362]
[1752117898025,3.3505779,671.5,671.05,1.5164362]
[1752117898326,3.3505779,671.5,671.06,1.5164362]
[1752117898524,3.3505779,671.5,671.07,1.5164362]
[1752117898722,3.3505779,671.5,671.08,1.5164362]
[1752117898924,3.3505779,671.5,670.85,1.6704941]
[1752117899126,3.3505779,671.5,670.86,1.5165445]
[1752117899323,3.3505779,671.5,670.87,1.5165445]
[1752117899528,3.3505779,671.5,670.88,1.5165445]
[1752117899726,3.3505779,671.5,670.89,1.5165445]
[1752117899934,3.3505779,671.5,670.9,1.5165445]
[1752117900127,3.3505779,671.5,670.91,1.5165445]
[1752117900324,3.3505779,671.5,670.92,1.5165445]
[1752117900628,3.3505779,671.5,670.85,1.6704941]
[1752117900629,3.3505779,671.44,670.93,1.5165445]
[1752117900827,3.3505779,671.44,670.94,1.5165445]
[1752117901026,3.3505779,671.44,670.95,1.5165445]
[1752117901227,3.3505779,671.44,670.96,1.5165445]
[1752117901429,3.3505779,671.44,670.97,1.5165445]
[1752117901725,3.3505779,671.44,670.98,1.5165445]
[1752117901930,3.3505779,671.44,670.99,1.5165445]
[1752117902131,3.3505779,671.44,671.0,1.5165445]
[1752117902326,3.3505779,671.44,671.01,1.5165445]
[1752117902529,3.3505779,671.44,671.02,1.5165445]
[1752117902728,3.3505779,671.44,671.03,1.5165445]
[1752117902926,3.3505779,671.44,671.04,1.5165445]
[1752117903227,3.3505779,671.45,671.05,1.5165445]
[1752117903426,3.3505779,671.45,671.06,1.5165445]
[1752117903626,3.3505779,671.45,671.07,1.5165445]
[1752117903826,3.3505779,671.45,670.93,2.44]
[1752117904130,3.3505779,671.47,670.94,1.5168322]
[1752117904333,3.3505779,671.47,670.95,1.5168322]
[1752117904631,3.3505779,671.47,670.96,1.5168322]
[1752117904931,3.3505779,671.47,670.97,1.5168322]
[1752117905127,3.3505779,671.47,670.98,1.5168322]
[1752117905427,3.3505779,671.47,670.99,1.5168322]
[1752117905631,3.3505779,671.46,671.0,1.5168322]
[1752117905827,3.3505779,671.46,671.01,1.5168322]
[1752117906032,3.3505779,671.46,671.02,1.5168322]
[1752117906234,3.3505779,671.46,671.03,1.5170565]
[1752117906429,3.3505779,671.46,671.04,1.5170565]
[1752117906629,3.3505779,671.46,671.05,1.5170565]
[1752117906831,3.3505779,671.46,671.06,1.5170565]
[1752117907133,3.3505779,671.48,671.07,1.5170565]
[1752117907333,3.3505779,671.48,670.93,2.44]
[1752117907534,3.3505779,671.48,670.94,1.5170639]
[1752117907829,3.3505779,671.5,670.95,1.5170639]
[1752117908033,3.3505779,671.5,670.96,1.5170639]
[1752117908233,3.3505779,671.5,670.97,1.5170639]
[1752117908529,3.3505779,671.5,670.98,1.5170639]
[1752117908730,3.3505779,671.5,670.99,1.5170639]
[1752117909032,3.3505779,671.5,671.0,1.5170639]
[1752117909232,3.3505779,671.5,671.01,1.5170639]
[1752117909433,3.3505779,671.5,671.02,1.5170639]
[1752117909633,3.3505779,671.5,671.03,1.5170639]
[1752117909833,3.3505779,671.5,671.04,1.5170639]
[1752117910129,3.3505779,671.5,671.05,1.5170639]
[1752117910336,3.3505779,671.5,671.06,1.5170639]
[1752117910533,3.3505779,671.5,671.07,1.5170639]
[1752117910734,3.3505779,671.5,671.08,1.5170639]
[1752117910934,3.3505779,671.5,670.93,2.44]
[1752117911136,3.3505779,671.5,670.94,1.5162678]
[1752117911337,3.3505779,671.5,670.95,1.5162678]
[1752117911535,3.3505779,671.5,670.96,1.5162678]
[1752117911737,3.3505779,671.5,670.97,1.5162678]
[1752117911935,3.3505779,671.5,670.98,1.5162678]
[1752117912134,3.3505779,671.5,670.99,1.5162678]
[1752117912334,3.3505779,671.5,671.0,1.5162678]
[1752117912635,3.3505779,671.5,671.01,1.5162678]
[1752117912834,3.3505779,671.5,671.02,1.5162678]
[1752117913049,3.3505779,671.5,671.03,1.5162678]
[1752117913233,3.3505779,671.5,671.04,1.5162678]
[1752117913433,3.3505779,671.5,670.93,2.44]
[1752117913434,3.3505779,671.5,671.05,1.5162678]
[1752117913633,3.3505779,671.5,671.06,1.5162678]
[1752117913935,3.3505779,671.49,671.07,1.5162678]
[1752117914138,3.3505779,671.49,671.08,1.5162678]
[1752117914338,3.3505779,671.49,670.93,2.44]
[1752117914536,3.3505779,671.49,670.94,1.5163352]
[1752117914735,3.3505779,671.49,670.95,1.5163352]
[1752117915038,3.3505779,671.49,670.96,1.5163352]
[1752117915235,3.3505779,671.49,670.97,1.5163352]
[1752117915434,3.3505779,671.49,670.98,1.5163352]
[1752117915634,3.3505779,671.49,670.99,1.5163352]
[1752117915839,3.3505779,671.49,671.0,1.5163352]
[1752117916134,3.3505779,671.49,671.01,1.5163352]
[1752117916336,3.3505779,671.49,671.02,1.5163352]
[1752117916536,3.3505779,671.49,671.03,1.5163352]
[1752117916738,3.3505779,671.57,671.04,1.5163352]
[1752117917034,3.3505779,671.56,671.05,1.5163352]
[1752117917239,3.3505779,671.56,671.06,1.5163352]
[1752117917436,3.3505779,671.56,671.07,1.5163352]
[1752117917640,3.60976489,671.63,671.08,1.5163352]
[1752117917840,3.60976489,671.63,670.93,2.44]
[1752117918135,3.60976489,671.63,670.94,1.51647564]
[1752117918341,3.60976489,671.63,670.95,1.51647564]
[1752117918640,3.60976489,671.63,670.96,1.51647564]
[1752117918837,3.60976489,671.63,670.97,1.51647564]
[1752117919037,3.60976489,671.63,670.98,1.51647564]
[1752117919242,3.60976489,671.63,670.99,1.51647564]
[1752117919438,3.60976489,671.63,671.0,1.51647564]
[1752117919637,3.60976489,671.63,671.01,1.51647564]
[1752117919837,3.60976489,671.63,671.02,1.51647564]
[1752117920136,3.60976489,671.63,671.03,1.51647564]
[1752117920340,3.60976489,671.63,671.04,1.51647564]
[1752117920538,3.60976489,671.63,671.05,1.51647394]
[1752117920842,3.60976489,671.63,671.06,1.51647394]
[1752117921042,3.60976489,671.63,671.07,1.51647394]
[1752117921240,3.60976489,671.63,671.08,1.51647394]
[1752117921540,3.60976489,671.63,670.93,2.44]
[1752117921745,3.60976489,671.63,670.94,1.51647384]
[1752117921944,3.60976489,671.63,670.95,1.51647384]
[1752117922144,3.60976489,671.63,670.96,1.51647384]
[1752117922344,3.60976489,671.63,670.97,1.51647384]
[1752117922545,3.60976489,671.63,670.98,1.51647384]
[1752117922839,3.60976489,671.63,670.99,1.51647384]
[1752117923039,3.60976489,671.63,671.0,1.51647384]
[1752117923242,3.60976489,671.63,671.01,1.51647384]
[1752117923443,3.60976489,671.63,671.02,1.51647384]
[1752117923643,3.60976489,671.63,671.03,1.51647384]
[1752117923840,3.60976489,671.63,671.04,1.51647384]
[1752117924044,3.60976489,671.63,671.05,1.51647384]
[1752117924243,3.60976489,671.63,671.06,1.51647384]
[1752117924445,3.60976489,671.63,671.07,1.51647384]
[1752117924641,3.60976489,671.63,671.08,1.51647384]
[1752117924847,3.60976489,671.63,670.93,2.44]
[1752117925147,3.60976489,671.63,670.94,1.51647401]
[1752117925347,3.60976489,671.63,670.95,1.51647401]
[1752117925547,3.60976489,671.63,670.96,1.51647401]
[1752117925745,3.60976489,671.63,670.97,1.51647401]
[1752117925947,3.60976489,671.63,670.98,1.51647401]
[1752117926149,3.60976489,671.63,670.93,2.44]
[1752117926150,3.60976489,671.63,670.99,1.51647401]
[1752117926449,3.60976489,671.63,671.0,1.51647401]
[1752117926746,3.3505779,671.6,671.01,1.51647401]
[1752117926947,3.3505779,671.6,671.02,1.51647401]
[1752117927149,3.3505779,671.6,671.03,1.51647401]
[1752117927349,3.3505779,671.6,671.04,1.51647401]
[1752117927549,3.3505779,671.51,671.05,1.51647401]
[1752117927751,3.3505779,671.51,671.06,1.51647401]
[1752117927949,3.3505779,671.51,671.07,1.51647401]
[1752117928146,3.3505779,671.51,671.08,1.51647401]
[1752117928353,3.3505779,671.51,670.93,2.44]
[1752117928552,3.3505779,671.51,670.94,1.51647404]
[1752117928752,3.3505779,671.51,670.95,1.51647404]
[1752117928952,3.3505779,671.51,670.96,1.51647404]
[1752117929149,3.3505779,671.51,670.97,1.51647404]
[1752117929453,3.3505779,671.51,670.98,1.51647404]
[1752117929652,3.3505779,671.51,670.99,1.51647404]
[1752117929849,3.3505779,671.51,671.0,1.51647404]
[1752117930154,3.3505779,671.51,671.01,1.51647404]
[1752117930453,3.3505779,671.51,671.02,1.51647404]
[1752117930653,3.3505779,671.51,671.03,1.51647404]
[1752117930952,3.3505779,671.51,671.04,1.51647404]
[1752117931151,3.3505779,671.51,671.05,1.51647404]
[1752117931351,3.3505779,671.55,671.06,1.51647404]
[1752117931549,3.3505779,671.56,671.07,1.51647404]
[1752117931749,3.3505779,671.55,671.08,1.51647404]
[1752117931953,3.3505779,671.55,670.93,2.44]
[1752117932149,3.3505779,671.55,670.94,1.51647418]
[1752117932351,3.3505779,671.55,670.95,1.51647418]
[1752117932554,3.3505779,671.55,670.96,1.51647418]
[1752117932754,3.3505779,671.55,670.97,1.51647418]
[1752117932954,3.3505779,671.55,670.98,1.51647418]
[1752117933254,3.3505779,671.55,670.99,1.51647418]
[1752117933454,3.3505779,671.55,671.0,1.51647418]
[1752117933655,3.3505779,671.55,671.01,1.51647418]
[1752117933856,3.3505779,671.55,671.02,1.51647418]
[1752117934053,3.3505779,671.55,671.03,1.51647418]
[1752117934254,3.3505779,671.55,671.04,1.51647418]
[1752117934455,3.3505779,671.55,671.05,1.51647418]
[1752117934655,3.3505779,671.54,671.06,1.51647418]
[1752117934954,3.3505779,671.54,671.07,1.51647418]
[1752117935160,3.3505779,671.54,671.08,1.51647418]
[1752117935454,3.3505779,671.54,670.93,2.44]
[1752117935753,3.3505779,671.54,670.94,1.51647092]
[1752117935957,3.3505779,671.54,670.95,1.51647092]
[1752117936253,3.3505779,671.54,670.96,1.51647092]
[1752117936554,3.3505779,671.54,670.97,1.51647092]
[1752117936855,3.3505779,671.54,670.98,1.51647092]
[1752117937057,3.3505779,671.54,670.99,1.51647092]
[1752117937255,3.3505779,671.54,671.0,1.51647092]
[1752117937456,3.3505779,671.54,671.01,1.51647092]
[1752117937656,3.3505779,671.54,671.02,1.51647092]
[1752117937858,3.3505779,671.54,671.03,1.51647092]
[1752117938157,3.3505779,671.54,671.04,1.51647092]
[1752117938361,3.3505779,671.54,671.05,1.51647092]
[1752117938558,3.3505779,671.54,671.06,1.51647092]
[1752117938862,3.3505779,671.54,671.07,1.51647092]
[1752117939158,3.3505779,671.54,671.08,1.51647092]
[1752117939362,3.3505779,671.54,670.93,2.44]
[1752117939559,3.3505779,671.54,670.94,1.5171219]
[1752117939760,3.3505779,671.54,670.95,1.5171219]
[1752117939959,3.3505779,671.54,670.96,1.5171219]
[1752117940159,3.3505779,671.54,670.97,1.5171219]
[1752117940360,3.3505779,671.54,670.98,1.5171219]
[1752117940560,2.23463657,671.39,670.93,2.44]
[1752117941261,2.23463657,671.35,670.93,2.44]
[1752117943062,2.23463657,671.37,670.93,2.44]
[1752117943258,2.23463657,671.38,670.93,2.44]
[1752117943664,2.23463657,671.39,670.93,2.44]
[1752117944061,2.23463657,671.39,670.84,1.67144893]
[1752117946065,2.23463657,671.38,670.84,1.67144893]
[1752117948167,2.23463657,671.38,670.85,2.28]
[1752117949473,2.23463657,671.4,670.85,2.28]
[1752117951680,2.23463657,671.41,670.85,2.28]
[1752117952879,2.23463657,671.4,670.85,2.28]
[1752117953174,2.23463657,671.39,670.85,2.28]
[1752117953377,2.23463657,671.4,670.85,2.28]
[1752117958586,2.23463657,671.39,670.85,2.28]
[1752117959280,0.25918699,671.63,670.85,2.28]
[1752117959281,2.23463657,671.37,670.85,2.28]
[1752117960483,2.23463657,671.39,670.85,2.28]
[1752117961685,2.23463657,671.38,670.85,2.28]
[1752117963485,2.23463657,671.37,670.85,3.95217404]
[1752117963694,2.23463657,671.37,670.85,2.28]
[1752117964982,2.23463657,671.38,670.85,2.28]
[1752117965185,2.23463657,671.39,670.85,2.28]
[1752117966286,2.23463657,671.44,670.85,2.28]
[1752117967582,2.23463657,671.45,670.85,2.28]
[1752117969489,2.23463657,671.44,670.85,2.28]
[1752117970089,2.23463657,671.45,670.85,2.28]
[1752117970487,2.23463657,671.44,670.85,2.28]
[1752117975088,2.23463657,671.43,670.85,2.28]
[1752117976190,2.23463657,671.38,670.85,2.28]
[1752117977191,2.23463657,671.37,670.85,2.28]
[1752117977488,2.23463657,671.35,670.85,3.95217404]
[1752117978393,2.23463657,671.36,670.85,3.95217404]
[1752117978689,2.23463657,671.38,670.85,2.28]
[1752117979895,2.23463657,671.37,670.85,2.28]
[1752117983596,2.23463657,671.37,670.85,3.95168421]
[1752117984796,2.23463657,671.38,670.85,2.28]
[1752117988499,2.23463657,671.36,670.85,3.95190982]
[1752117989997,0.25918699,671.63,670.85,2.28]
[1752117990499,2.23463657,671.52,670.85,2.28]
[1752117990695,2.23463657,671.51,670.85,2.28]
[1752117990900,2.23463657,671.52,670.85,2.28]
[1752117991100,2.23463657,671.53,670.85,2.28]
[1752117991299,2.23463657,671.5,670.85,2.28]
[1752117991595,2.23463657,671.49,670.85,2.28]
[1752117991795,0.25928354,671.34,670.85,2.28]
[1752118006110,0.25928354,671.34,670.77,1.67176446]
[1752118006316,0.25928354,671.34,670.78,1.67176446]
[1752118008816,0.25928354,671.34,670.62,2.2305172]
[1752118009116,0.25928354,671.34,670.78,1.67176946]
[1752118014617,0.25928354,671.34,670.78,1.67175284]
[1752118015217,0.25928354,671.34,670.82,1.67175284]
[1752118015812,0.25928354,671.34,670.69,1.67175284]
[1752118016515,0.25928354,671.34,670.7,1.67175284]
[1752118017823,0.25928354,671.34,670.69,1.67175284]
[1752118018121,0.25928354,671.34,670.64,1.67175284]
[1752118019317,0.25928354,671.34,670.63,4.07975284]
[1752118019521,0.25928354,671.34,670.64,1.67175284]
[1752118025725,0.25928354,671.34,670.67,1.67175284]
[1752118028133,0.25928354,671.34,670.74,1.67175284]
[1752118028531,0.25928354,671.34,670.73,1.67175284]
[1752118030133,0.25928354,671.34,670.75,1.67175284]
[1752118030729,0.25928354,671.34,670.76,1.67175284]
[1752118032436,0.25928354,671.34,670.77,1.67175284]
[1752118033433,0.25928354,671.34,670.76,1.67175284]
[1752118034638,0.25928354,671.34,670.81,1.67175284]
[1752118034835,0.25928354,671.34,670.73,1.67175284]
[1752118035838,0.25928354,671.34,670.74,1.67175284]
[1752118038737,0.25928354,671.34,670.71,1.67175284]
[1752118043546,0.25928354,671.34,670.72,2.691]
[1752118048550,0.25928354,671.34,670.73,1.67175284]
[1752118053751,0.25928354,671.34,670.78,1.67175284]
[1752118053954,0.25928354,671.34,670.81,1.67175284]
[1752118055050,0.25928354,671.34,670.79,1.67175284]
[1752118055452,0.25928354,671.34,670.78,1.67175284]
[1752118055755,0.25928354,671.34,670.79,1.67175284]
[1752118057357,0.25928354,671.34,670.78,1.67175284]
[1752118059457,0.25928354,671.34,670.72,2.691]
[1752118059458,0.25928354,671.34,670.79,1.67175284]
[1752118060463,0.25928354,671.34,670.78,1.67175284]
[1752118060658,0.25928354,671.34,670.79,1.5159136]
[1752118060861,0.25928354,671.34,670.8,1.5159136]
[1752118061058,0.25928354,671.34,670.81,1.5159136]
[1752118061358,0.25928354,671.34,670.82,1.5159136]
[1752118061656,0.25928354,671.34,670.83,1.5159136]
[1752118061857,0.25928354,671.34,670.84,1.5159136]
[1752118062056,0.25928354,671.34,670.85,1.5159136]
[1752118062260,0.25928354,671.34,670.86,1.5159136]
[1752118062462,0.25928354,671.34,670.87,1.5159136]
[1752118062761,0.25928354,671.34,670.88,1.5159136]
[1752118062961,0.25928354,671.34,670.89,1.5159136]
[1752118063164,0.25928354,671.34,670.9,1.5159136]
[1752118063362,0.25928354,671.34,670.91,1.5159136]
[1752118063664,0.25928354,671.34,670.92,1.5159136]
[1752118063864,0.25928354,671.34,670.93,1.5159136]
[1752118064063,0.25928354,671.34,670.94,1.5159136]
[1752118064267,0.25928354,671.34,670.95,1.5159136]
[1752118064463,0.25928354,671.34,670.96,1.5159136]
[1752118064667,0.25928354,671.34,670.97,1.5159136]
[1752118064867,0.25928354,671.34,670.98,1.5159136]
[1752118065166,0.25928354,671.34,670.99,1.5159136]
[1752118065367,0.25928354,671.34,671.0,1.5159136]
[1752118065568,0.25928354,671.34,671.01,1.5159136]
[1752118065863,0.25928354,671.34,671.02,1.5159136]
[1752118066063,0.25928354,671.34,671.03,1.5159136]
[1752118066364,0.25928354,671.34,671.04,1.5159136]
[1752118066564,0.25928354,671.34,671.05,1.5159136]
[1752118066762,0.25928354,671.34,671.06,1.5159136]
[1752118066962,0.25928354,671.34,671.07,1.5159136]
[1752118067166,0.25928354,671.34,671.08,1.5159136]
[1752118067365,0.25928354,671.34,670.72,2.691]
[1752118067667,0.25928354,671.34,670.73,1.5159299]
[1752118067867,0.25928354,671.34,670.74,1.5159299]
[1752118068067,0.25928354,671.34,670.75,1.5159299]
[1752118068269,0.25928354,671.34,670.76,1.5159299]
[1752118068470,0.25928354,671.34,670.77,1.5159299]
[1752118068670,0.25928354,671.34,670.78,1.5159299]
[1752118068871,0.25928354,671.34,670.79,1.5159299]
[1752118069067,0.25928354,671.34,670.8,1.5159299]
[1752118069271,0.25928354,671.34,670.81,1.5159299]
[1752118069570,0.25928354,671.34,670.82,1.5159299]
[1752118069767,0.25928354,671.34,670.83,1.5159299]
[1752118069967,0.25928354,671.34,670.84,1.5159299]
[1752118070167,0.25928354,671.34,670.85,1.5159299]
[1752118070371,0.25928354,671.34,670.86,1.5159299]
[1752118070569,0.25928354,671.34,670.87,1.5159299]
[1752118070772,0.25928354,671.34,670.88,1.5159299]
[1752118071068,0.25928354,671.34,670.89,1.5159299]
[1752118071268,0.25928354,671.34,670.9,1.5159299]
[1752118071569,0.25928354,671.34,670.72,2.691]
[1752118071570,0.25928354,671.34,670.91,1.5159299]
[1752118071772,0.25928354,671.34,670.92,1.5159299]
[1752118071968,0.25928354,671.34,670.93,1.5159299]
[1752118072174,0.25928354,671.34,670.94,1.5159299]
[1752118072374,0.25928354,671.34,670.95,1.5159299]
[1752118072574,0.25928354,671.34,670.96,1.5159299]
[1752118072772,0.25928354,671.34,670.97,1.5159299]
[1752118072974,0.25928354,671.34,670.98,1.5159299]
[1752118073271,0.25928354,671.34,670.99,1.5159299]
[1752118073476,0.25928354,671.34,671.0,1.5159299]
[1752118073777,0.25928354,671.34,671.01,1.5159299]
[1752118074078,0.25928354,671.34,671.02,1.5159299]
[1752118074276,0.25928354,671.34,671.03,1.5159299]
[1752118074476,0.25928354,671.34,671.04,1.5159299]
[1752118074672,0.25928354,671.34,671.05,1.5159299]
[1752118074876,0.25928354,671.34,670.76,1.67175284]
[1752118074877,0.25928354,671.34,671.06,1.5159299]
[1752118075073,0.25928354,671.34,671.07,1.5159299]
[1752118075278,0.25928354,671.34,671.08,1.5159299]
[1752118075479,0.25928354,671.34,670.79,1.67175284]
[1752118075780,0.25928354,671.34,670.8,1.51595258]
[1752118076073,0.25928354,671.34,670.81,1.51595258]
[1752118076378,0.25928354,671.34,670.82,1.51595258]
[1752118076578,0.25928354,671.34,670.83,1.51595258]
[1752118076776,0.25928354,671.34,670.84,1.51595258]
[1752118076974,0.25928354,671.34,670.85,1.51595258]
[1752118077178,0.25928354,671.34,670.78,1.67175284]
[1752118077179,0.25928354,671.34,670.86,1.51595258]
[1752118077379,0.25928354,671.34,670.87,1.51595258]
[1752118077677,0.25928354,671.34,670.78,1.67175284]
[1752118077678,0.25928354,671.34,670.88,1.51595258]
[1752118077875,0.25928354,671.34,670.89,1.51595258]
[1752118078076,0.25928354,671.34,670.9,1.51595258]
[1752118078280,0.25928354,671.34,670.91,1.51595258]
[1752118078479,0.25928354,671.34,670.92,1.51595258]
[1752118078780,0.25928354,671.34,670.93,1.51595258]
[1752118079085,0.25928354,671.34,670.94,1.51595258]
[1752118079384,0.25928354,671.34,670.95,1.51595258]
[1752118079683,0.25928354,671.34,670.96,1.51595258]
[1752118079880,0.25928354,671.34,670.97,1.51595258]
[1752118080081,0.25928354,671.34,670.98,1.51595258]
[1752118080282,0.25928354,671.34,670.99,1.51595258]
[1752118080480,0.25928354,671.34,671.0,1.51595258]
[1752118080679,0.25928354,671.34,671.01,1.51598437]
[1752118080881,0.25928354,671.34,671.02,1.51598437]
[1752118081084,0.25928354,671.34,671.03,1.51598437]
[1752118081285,0.25928354,671.34,671.04,1.51598437]
[1752118081485,0.25928354,671.34,670.72,4.36270768]
[1752118081486,0.25928354,671.34,671.05,1.51598437]
[1752118081684,0.25928354,671.34,671.06,1.51598437]
[1752118081884,0.25928354,671.34,671.07,1.51598437]
[1752118082083,0.25928354,671.34,671.08,1.51598437]
[1752118082286,0.25928354,671.34,670.72,4.36270768]
[1752118082582,0.25928354,671.34,670.73,1.51600166]
[1752118082782,0.25928354,671.34,670.74,1.51600166]
[1752118082983,0.25928354,671.34,670.75,1.51600166]
[1752118083182,0.25928354,671.34,670.76,1.51600166]
[1752118083385,0.25928354,671.34,670.77,1.51600166]
[1752118083584,0.25928354,671.34,670.78,1.51600166]
[1752118083785,0.25928354,671.34,670.79,1.51600166]
[1752118083986,0.25928354,671.34,670.8,1.51600166]
[1752118084188,0.25928354,671.34,670.81,1.51600166]
[1752118084384,0.25928354,671.34,670.82,1.51600166]
[1752118084585,0.25928354,671.34,670.83,1.51600166]
[1752118084886,0.25928354,671.34,670.84,1.51600166]
[1752118085091,0.25928354,671.34,670.85,1.51600166]
[1752118085288,0.25928354,671.34,670.86,1.51600166]
[1752118085485,0.25928354,671.34,670.87,1.51600166]
[1752118085685,0.25928354,671.34,670.88,1.51600166]
[1752118085988,0.25928354,671.34,670.89,1.51600166]
[1752118086185,0.25928354,671.34,670.74,1.67170768]
[1752118086186,0.25928354,671.34,670.9,1.51600166]
[1752118086487,0.25928354,671.34,670.91,1.51600166]
[1752118086686,0.25928354,671.34,670.92,1.51600166]
[1752118086987,0.25928354,671.34,670.93,1.51600166]
[1752118087191,0.25928354,671.34,670.94,1.51600166]
[1752118087486,0.25928354,671.34,670.95,1.51600166]
[1752118087690,0.25928354,671.34,670.96,1.51600166]
[1752118087986,0.25928354,671.34,670.97,1.51600166]
[1752118088191,0.25928354,671.34,670.98,1.51600166]
[1752118088392,0.25928354,671.34,670.99,1.51600166]
[1752118088691,0.25928354,671.34,671.0,1.51600166]
[1752118088887,0.25928354,671.34,671.01,1.51600166]
[1752118089086,0.25928354,671.34,671.02,1.51600166]
[1752118089290,0.25928354,671.34,671.03,1.51600166]
[1752118089488,0.25928354,671.34,671.04,1.51600166]
[1752118089792,0.25928354,671.34,671.05,1.51600166]
[1752118089993,0.25928354,671.34,671.06,1.51600166]
[1752118090293,0.25928354,671.34,671.07,1.51600166]
[1752118090493,0.25928354,671.34,671.08,1.51600166]
[1752118090688,0.25928354,671.34,670.79,1.67170768]
[1752118091188,0.25928354,671.34,670.8,1.67170768]
[1752118094698,0.25928354,671.34,670.82,1.67170768]
[1752118094902,0.25928354,671.34,670.81,1.67170768]
[1752118099201,0.25928354,671.34,670.82,1.67170768]
[1752118099702,0.25928354,671.34,670.83,1.67170768]
[1752118100306,0.25928354,671.34,670.82,1.67170768]
[1752118100507,0.25928354,671.34,670.83,1.67170768]
[1752118103204,0.25928354,671.34,670.81,1.67170768]
[1752118104610,0.25928354,671.34,670.82,1.67170768]
[1752118104809,0.25928354,671.34,670.81,1.67170768]
[1752118106006,0.25928354,671.34,670.8,1.67170768]
[1752118106705,0.25928354,671.34,670.79,1.67170768]
[1752118111315,0.25928354,671.34,670.78,1.67170768]
[1752118112611,0.25928354,671.34,670.6,2.2305172]
[1752118112612,0.25928354,671.34,670.77,1.67170768]
[1752118113016,0.25928354,671.34,670.78,1.67170768]
[1752118115218,0.25928354,671.34,670.79,1.67170768]
[1752118116620,0.25928354,671.34,670.8,1.67170768]
[1752118116920,0.25928354,671.34,670.79,1.67170768]
[1752118121227,0.25928354,671.34,670.81,1.67170768]
[1752118126627,0.25928354,671.34,670.84,1.67170768]
[1752118128022,2.49403541,671.34,670.85,1.67170768]
[1752118129527,0.25928354,671.34,670.84,1.67170768]
[1752118129823,0.25928354,671.34,670.72,2.095]
[1752118129824,0.25928354,671.34,670.81,1.67170768]
[1752118132424,0.25928354,671.34,670.82,1.67170768]
[1752118134530,0.25928354,671.34,670.81,1.67170768]
[1752118135631,0.25928354,671.34,670.8,1.67170768]
[1752118136331,0.25928354,671.34,670.72,2.095]
[1752118136332,0.25928354,671.34,670.81,1.67170768]
[1752118137532,0.25928354,671.34,670.8,1.67170768]
[1752118139431,0.25928354,671.34,670.78,1.67170768]
[1752118139630,0.25928354,671.34,670.8,1.67170768]
[1752118140828,0.25928354,671.34,670.79,1.67170768]
[1752118142230,0.25928354,671.34,670.72,2.095]
[1752118147239,0.25928354,671.34,670.68,1.67170768]
[1752118147644,0.25928354,671.34,670.69,1.67170768]
[1752118147843,0.25928354,671.34,670.67,1.67170768]